[Event "NJSK 2023 Jeugd B"]
[Site "Almelo, Netherlands"]
[Date "2023.05.04"]
[Round "5.5"]
[White "Niemeijer, Leon"]
[Black "Van Hesselingen, Guido"]
[Result "0-1"]
[TimeControl "90min/40moves + 30min + 30sec/move"]
[WhiteElo "1903"]
[BlackElo "1924"]

1. d4 {[%clk 01:30:58]} {[%emt 00:00:02]} Nf6 {[%clk 01:30:54]} {[%emt
00:00:06]} 2. c4 {[%clk 01:31:24]} {[%emt 00:00:04]} e6 {[%clk 01:31:19]}
{[%emt 00:00:04]} 3. g3 {[%clk 01:31:52]} {[%emt 00:00:03]} d5 {[%clk
01:31:43]} {[%emt 00:00:06]} 4. Bg2 {[%clk 01:32:18]} {[%emt 00:00:04]} Be7
{[%clk 01:31:55]} {[%emt 00:00:16]} 5. Nf3 {[%clk 01:32:34]} {[%emt 00:00:16]}
O-O {[%clk 01:31:56]} {[%emt 00:00:28]} 6. O-O {[%clk 01:33:01]} {[%emt
00:00:04]} dxc4 {[%clk 01:32:02]} {[%emt 00:00:24]} 7. Ne5 {[%clk 01:33:23]}
{[%emt 00:00:09]} Nc6 {[%clk 01:32:19]} {[%emt 00:00:12]} 8. Nxc6 {[%clk
01:20:44]} {[%emt 00:13:09]} bxc6 {[%clk 01:32:43]} {[%emt 00:00:05]} 9. Bxc6
{[%clk 01:21:11]} {[%emt 00:00:04]} Rb8 {[%clk 01:33:07]} {[%emt 00:00:06]} 10.
Nc3 {[%clk 01:20:35]} {[%emt 00:01:06]} Bb7 {[%clk 01:31:59]} {[%emt 00:01:38]}
11. Bxb7 {[%clk 01:19:12]} {[%emt 00:01:53]} Rxb7 {[%clk 01:32:23]} {[%emt
00:00:05]} 12. e3 {[%clk 01:18:46]} {[%emt 00:00:57]} Nd5 {[%clk 01:29:22]}
{[%emt 00:03:31]} 13. Qe2 {[%clk 01:12:38]} {[%emt 00:06:38]} Nxc3 {[%clk
01:19:02]} {[%emt 00:10:50]} 14. bxc3 {[%clk 01:13:06]} {[%emt 00:00:02]} Qd5
{[%clk 01:18:39]} {[%emt 00:00:51]} 15. e4 {[%clk 01:04:19]} {[%emt 00:09:18]}
Qb5 {[%clk 01:04:51]} {[%emt 00:14:18]} 16. Qc2 {[%clk 00:38:49]} {[%emt
00:26:01]} c5 {[%clk 00:46:44]} {[%emt 00:18:36]} 17. Ba3 {[%clk 00:19:35]}
{[%emt 00:19:45]} cxd4 {[%clk 00:34:38]} {[%emt 00:12:35]} 18. Bxe7 {[%clk
00:08:06]} {[%emt 00:11:59]} d3 {[%clk 00:34:44]} {[%emt 00:00:24]} 19. Qb1
{[%clk 00:08:27]} {[%emt 00:00:10]} Qxb1 {[%clk 00:33:26]} {[%emt 00:01:47]} 20.
Rfxb1 {[%clk 00:08:54]} Rxe7 {[%clk 00:33:39]} {[%emt 00:00:21]} 21. Rb4 {[%clk
00:09:23]} {[%emt 00:00:01]} Rc8 {[%clk 00:28:20]} {[%emt 00:05:48]} 22. Rab1
{[%clk 00:08:27]} {[%emt 00:01:27]} g6 {[%clk 00:28:12]} {[%emt 00:00:38]} 23.
f3 {[%clk 00:04:07]} {[%emt 00:04:50]} Kg7 {[%clk 00:20:20]} {[%emt 00:08:21]}
24. Kf2 {[%clk 00:04:32]} {[%emt 00:00:06]} Rd7 {[%clk 00:20:10]} {[%emt
00:00:40]} 25. Ke3 {[%clk 00:03:00]} {[%emt 00:02:01]} Kf6 {[%clk 00:17:56]}
{[%emt 00:02:44]} 26. Kd2 {[%clk 00:01:35]} {[%emt 00:01:56]} Rc6 {[%clk
00:14:07]} {[%emt 00:04:19]} 27. R4b2 {[%clk 00:30:30]} {[%emt 00:01:35]} 0-1

[Event "NJSK 2023 Jeugd B"]
[Site "Almelo, Netherlands"]
[Date "2023.05.04"]
[Round "5.6"]
[White "Guillaumond, Matthieu"]
[Black "Ponomarev, Ivan"]
[Result "1-0"]
[TimeControl "90min/40moves + 30min + 30sec/move"]
[WhiteElo "2010"]
[BlackElo "1788"]

1. e4 {[%clk 01:30:58]} {[%emt 00:00:02]} c5 {[%clk 01:30:58]} {[%emt
00:00:02]} 2. c3 {[%clk 01:31:23]} {[%emt 00:00:05]} d5 {[%clk 01:31:21]}
{[%emt 00:00:06]} 3. exd5 {[%clk 01:31:48]} {[%emt 00:00:06]} Qxd5 {[%clk
01:31:46]} {[%emt 00:00:05]} 4. d4 {[%clk 01:32:12]} {[%emt 00:00:05]} e6
{[%clk 01:30:49]} {[%emt 00:01:28]} 5. Na3 {[%clk 01:32:06]} {[%emt 00:00:36]}
Nf6 {[%clk 01:26:52]} {[%emt 00:04:26]} 6. Nf3 {[%clk 01:31:07]} {[%emt
00:01:29]} Nc6 {[%clk 01:22:43]} {[%emt 00:04:40]} 7. Bc4 {[%clk 01:22:35]}
{[%emt 00:09:02]} Qd8 {[%clk 01:12:29]} {[%emt 00:10:43]} 8. dxc5 {[%clk
01:21:22]} {[%emt 00:01:44]} Bxc5 {[%clk 01:06:54]} {[%emt 00:06:05]} 9. Qxd8+
{[%clk 01:20:20]} {[%emt 00:01:31]} Kxd8 {[%clk 01:07:14]} {[%emt 00:00:11]} 10.
Bf4 {[%clk 01:06:00]} {[%emt 00:14:50]} a6 {[%clk 00:59:46]} {[%emt 00:07:58]}
11. O-O-O+ {[%clk 01:04:55]} {[%emt 00:01:34]} Bd7 {[%clk 00:59:30]} {[%emt
00:00:46]} 12. Ng5 {[%clk 00:58:31]} {[%emt 00:06:54]} Ke8 {[%clk 00:52:06]}
{[%emt 00:07:55]} 13. f3 {[%clk 00:58:25]} {[%emt 00:00:36]} b5 {[%clk
00:48:56]} {[%emt 00:03:40]} 14. Bb3 {[%clk 00:57:31]} {[%emt 00:01:24]} Na5
{[%clk 00:44:37]} {[%emt 00:04:49]} 15. Rhe1 {[%clk 00:54:29]} {[%emt
00:03:32]} h6 {[%clk 00:37:11]} {[%emt 00:07:55]} 16. Ne4 {[%clk 00:50:30]}
{[%emt 00:04:30]} Nxe4 {[%clk 00:37:30]} {[%emt 00:00:11]} 17. fxe4 {[%clk
00:50:25]} {[%emt 00:00:34]} Ke7 {[%clk 00:31:28]} {[%emt 00:06:30]} 18. Bxe6
{[%clk 00:30:29]} {[%emt 00:20:29]} Bxe6 {[%clk 00:25:33]} {[%emt 00:06:24]} 19.
b4 {[%clk 00:30:56]} {[%emt 00:00:03]} Bb6 {[%clk 00:12:57]} {[%emt 00:13:05]}
20. Bd6+ {[%clk 00:30:20]} {[%emt 00:01:07]} Kf6 {[%clk 00:13:20]} {[%emt
00:00:08]} 21. bxa5 {[%clk 00:30:43]} {[%emt 00:00:07]} Bxa5 {[%clk 00:13:49]}
22. Kb2 {[%clk 00:30:38]} {[%emt 00:00:35]} Rhc8 {[%clk 00:13:16]} {[%emt
00:01:01]} 23. Re3 {[%clk 00:29:01]} {[%emt 00:02:09]} Kg6 {[%clk 00:10:52]}
{[%emt 00:02:54]} 24. Rf1 {[%clk 00:21:36]} {[%emt 00:07:55]} Rc6 {[%clk
00:09:58]} {[%emt 00:01:23]} 25. e5 {[%clk 00:21:41]} {[%emt 00:00:25]} Rac8
{[%clk 00:09:52]} {[%emt 00:00:36]} 26. Rff3 {[%clk 00:21:46]} {[%emt
00:00:25]} Bb6 {[%clk 00:08:45]} {[%emt 00:01:37]} 27. Rd3 {[%clk 00:18:58]}
{[%emt 00:03:18]} Bf5 {[%clk 00:05:47]} {[%emt 00:03:27]} 28. Rg3+ {[%clk
00:19:13]} {[%emt 00:00:16]} Kh7 {[%clk 00:06:13]} {[%emt 00:00:04]} 29. Rdf3
{[%clk 00:19:13]} {[%emt 00:00:30]} g6 {[%clk 00:05:22]} {[%emt 00:01:22]} 30.
Nc2 {[%clk 00:14:16]} {[%emt 00:05:27]} a5 {[%clk 00:01:03]} {[%emt 00:04:48]}
31. Rf4 {[%clk 00:12:48]} {[%emt 00:01:57]} Kg7 {[%clk 00:00:47]} {[%emt
00:00:47]} 32. Rxf5 {[%clk 00:12:57]} {[%emt 00:00:22]} 1-0

[Event "NJSK 2023 Jeugd B"]
[Site "Almelo, Netherlands"]
[Date "2023.05.04"]
[Round "5.7"]
[White "Veraart, Jan"]
[Black "Ritzerveld, Noah"]
[Result "0-1"]
[TimeControl "90min/40moves + 30min + 30sec/move"]
[WhiteElo "1560"]
[BlackElo "1776"]

1. e4 {[%clk 01:30:58]} {[%emt 00:00:01]} e5 {[%clk 01:30:53]} {[%emt
00:00:08]} 2. Nf3 {[%clk 01:31:24]} {[%emt 00:00:03]} Nc6 {[%clk 01:31:17]}
{[%emt 00:00:06]} 3. Bc4 {[%clk 01:31:51]} {[%emt 00:00:03]} Nf6 {[%clk
01:31:41]} {[%emt 00:00:06]} 4. Ng5 {[%clk 01:32:18]} {[%emt 00:00:03]} d5
{[%clk 01:32:02]} {[%emt 00:00:09]} 5. exd5 {[%clk 01:32:44]} {[%emt 00:00:04]}
Na5 {[%clk 01:32:26]} {[%emt 00:00:07]} 6. Bb5+ {[%clk 01:33:09]} {[%emt
00:00:04]} c6 {[%clk 01:32:51]} {[%emt 00:00:05]} 7. dxc6 {[%clk 01:33:35]}
{[%emt 00:00:04]} bxc6 {[%clk 01:33:17]} {[%emt 00:00:04]} 8. Bd3 {[%clk
01:33:59]} {[%emt 00:00:05]} Nd5 {[%clk 01:33:21]} {[%emt 00:00:27]} 9. h4
{[%clk 01:34:23]} {[%emt 00:00:05]} h6 {[%clk 01:06:25]} {[%emt 00:27:27]} 10.
Qh5 {[%clk 01:34:36]} {[%emt 00:00:18]} hxg5 {[%clk 00:42:38]} {[%emt
00:24:16]} 11. Qxh8 {[%clk 01:34:38]} {[%emt 00:00:28]} Nf4 {[%clk 00:40:14]}
{[%emt 00:02:55]} 12. Be4 {[%clk 01:26:15]} {[%emt 00:08:51]} Bg4 {[%clk
00:32:07]} {[%emt 00:08:38]} 13. d3 {[%clk 01:09:04]} {[%emt 00:17:40]} Qd4
{[%clk 00:30:14]} {[%emt 00:02:23]} 14. Nc3 {[%clk 01:07:30]} {[%emt 00:02:05]}
f5 {[%clk 00:26:41]} {[%emt 00:04:03]} 15. Bf3 {[%clk 00:54:09]} {[%emt
00:13:49]} Bxf3 {[%clk 00:22:08]} {[%emt 00:05:05]} 16. gxf3 {[%clk 00:54:11]}
{[%emt 00:00:28]} O-O-O {[%clk 00:18:39]} {[%emt 00:04:00]} 17. Be3 {[%clk
00:51:09]} {[%emt 00:03:31]} Nxd3+ {[%clk 00:10:27]} {[%emt 00:08:42]} 18. cxd3
{[%clk 00:49:04]} {[%emt 00:02:34]} Qxd3 {[%clk 00:10:49]} {[%emt 00:00:08]} 19.
Qh7 {[%clk 00:48:45]} {[%emt 00:00:47]} Bb4 {[%clk 00:08:09]} {[%emt 00:03:13]}
20. Bxg5 {[%clk 00:35:39]} {[%emt 00:13:36]} Nc4 {[%clk 00:07:05]} {[%emt
00:01:35]} 21. Qg6 {[%clk 00:35:15]} {[%emt 00:00:53]} Kb7 {[%clk 00:03:05]}
{[%emt 00:04:31]} 22. Qxg7+ {[%clk 00:14:09]} {[%emt 00:21:35]} Rd7 {[%clk
00:03:15]} {[%emt 00:00:20]} 23. Qxd7+ {[%clk 00:14:13]} {[%emt 00:00:26]} Qxd7
{[%clk 00:03:41]} {[%emt 00:00:04]} 24. O-O {[%clk 00:14:34]} {[%emt 00:00:08]}
f4 {[%clk 00:03:35]} {[%emt 00:00:37]} 25. Ne4 {[%clk 00:14:36]} {[%emt
00:00:28]} Qh3 {[%clk 00:03:22]} {[%emt 00:00:43]} 26. a3 {[%clk 00:13:33]}
{[%emt 00:01:33]} Nd2 {[%clk 00:03:20]} {[%emt 00:00:31]} 27. Nxd2 {[%clk
00:13:29]} {[%emt 00:00:35]} Bxd2 {[%clk 00:03:47]} {[%emt 00:00:04]} 28. Rfd1
{[%clk 00:13:36]} {[%emt 00:00:22]} e4 {[%clk 00:03:58]} {[%emt 00:00:20]} 29.
Rxd2 {[%clk 00:08:46]} {[%emt 00:05:19]} exf3 {[%clk 00:04:23]} {[%emt
00:00:05]} 30. Rd7+ {[%clk 00:09:09]} {[%emt 00:00:07]} Ka6 {[%clk 00:04:46]}
{[%emt 00:00:08]} 0-1

[Event "NJSK 2023 Jeugd B"]
[Site "Almelo, Netherlands"]
[Date "2023.05.04"]
[Round "5.8"]
[White "Knippenberg, Hidde"]
[Black "Snijders, Take"]
[Result "1/2-1/2"]
[TimeControl "90min/40moves + 30min + 30sec/move"]
[WhiteElo "1728"]
[BlackElo "1851"]

1. b3 {[%clk 01:30:58]} {[%emt 00:00:02]} d5 {[%clk 01:30:43]} {[%emt
00:00:16]} 2. Bb2 {[%clk 01:31:24]} {[%emt 00:00:04]} Bf5 {[%clk 01:30:58]}
{[%emt 00:00:16]} 3. e3 {[%clk 01:31:38]} {[%emt 00:00:16]} e6 {[%clk
01:31:02]} {[%emt 00:00:26]} 4. Nf3 {[%clk 01:31:51]} {[%emt 00:00:17]} Nf6
{[%clk 01:31:18]} {[%emt 00:00:14]} 5. Be2 {[%clk 01:31:13]} {[%emt 00:01:08]}
h6 {[%clk 01:31:27]} {[%emt 00:00:21]} 6. d3 {[%clk 01:31:31]} {[%emt
00:00:11]} Bd6 {[%clk 01:31:14]} {[%emt 00:00:43]} 7. Nbd2 {[%clk 01:31:55]}
{[%emt 00:00:06]} Nbd7 {[%clk 01:30:22]} {[%emt 00:01:23]} 8. O-O {[%clk
01:29:27]} {[%emt 00:02:58]} O-O {[%clk 01:26:51]} {[%emt 00:04:00]} 9. c4
{[%clk 01:28:50]} {[%emt 00:01:07]} c6 {[%clk 01:24:56]} {[%emt 00:02:27]} 10.
Qc2 {[%clk 01:23:52]} {[%emt 00:05:27]} Bh7 {[%clk 01:22:34]} {[%emt 00:02:52]}
11. e4 {[%clk 01:17:57]} {[%emt 00:06:25]} dxe4 {[%clk 01:18:54]} {[%emt
00:04:10]} 12. Nxe4 {[%clk 01:13:16]} {[%emt 00:05:11]} Nxe4 {[%clk 01:16:51]}
{[%emt 00:02:33]} 13. dxe4 {[%clk 01:12:52]} {[%emt 00:00:53]} Qe7 {[%clk
01:12:13]} {[%emt 00:05:08]} 14. Bd3 {[%clk 01:04:39]} {[%emt 00:08:44]} Nc5
{[%clk 01:06:17]} {[%emt 00:06:26]} 15. Qc3 {[%clk 01:02:42]} {[%emt 00:02:26]}
e5 {[%clk 01:06:20]} {[%emt 00:00:29]} 16. Rfe1 {[%clk 00:57:29]} {[%emt
00:05:42]} Nxd3 {[%clk 01:01:30]} {[%emt 00:05:20]} 17. Qxd3 {[%clk 00:57:49]}
{[%emt 00:00:10]} Rad8 {[%clk 00:59:58]} {[%emt 00:02:02]} 18. Qe2 {[%clk
00:57:07]} {[%emt 00:01:11]} Rd7 {[%clk 00:57:12]} {[%emt 00:03:17]} 19. c5
{[%clk 00:50:11]} {[%emt 00:07:25]} Bc7 {[%clk 00:48:20]} {[%emt 00:09:23]} 20.
b4 {[%clk 00:49:42]} {[%emt 00:00:59]} Rfd8 {[%clk 00:47:36]} {[%emt 00:01:14]}
21. Rac1 {[%clk 00:48:36]} {[%emt 00:01:35]} Rd3 {[%clk 00:43:09]} {[%emt
00:04:58]} 22. Rc3 {[%clk 00:47:52]} {[%emt 00:01:14]} Qd7 {[%clk 00:41:12]}
{[%emt 00:02:27]} 23. Rxd3 {[%clk 00:47:18]} {[%emt 00:01:05]} Qxd3 {[%clk
00:41:37]} {[%emt 00:00:04]} 24. Qxd3 {[%clk 00:47:43]} {[%emt 00:00:05]} Rxd3
{[%clk 00:42:02]} {[%emt 00:00:04]} 25. Bxe5 {[%clk 00:48:09]} {[%emt
00:00:05]} Bxe5 {[%clk 00:42:03]} {[%emt 00:00:29]} 26. Nxe5 {[%clk 00:48:31]}
{[%emt 00:00:09]} Rd4 {[%clk 00:40:33]} {[%emt 00:01:59]} 27. a3 {[%clk
00:41:28]} {[%emt 00:07:33]} Bxe4 {[%clk 00:35:46]} {[%emt 00:05:17]} 28. f3
{[%clk 00:39:50]} {[%emt 00:02:08]} Bd5 {[%clk 00:33:45]} {[%emt 00:02:31]} 29.
Kf2 {[%clk 00:39:48]} {[%emt 00:00:32]} f6 {[%clk 00:27:47]} {[%emt 00:06:28]}
30. Ng4 {[%clk 00:39:43]} {[%emt 00:00:34]} Rd3 {[%clk 00:25:46]} {[%emt
00:02:32]} 31. Re3 {[%clk 00:39:28]} {[%emt 00:00:45]} Rd2+ {[%clk 00:25:25]}
{[%emt 00:00:50]} 32. Re2 {[%clk 00:39:34]} {[%emt 00:00:24]} Rd3 {[%clk
00:24:00]} {[%emt 00:01:55]} 33. Re3 {[%clk 00:37:32]} {[%emt 00:02:33]} Rd2+
{[%clk 00:23:38]} {[%emt 00:00:52]} 34. Re2 {[%clk 00:37:56]} {[%emt 00:00:06]}
Rd3 {[%clk 00:22:10]} {[%emt 00:01:57]} 35. Re3 {[%clk 00:38:11]} {[%emt
00:00:16]} Rd2+ {[%emt 00:00:06]} 36. Re2 {[%emt 00:00:01]} Rd3 {[%emt
00:00:02]} 1/2-1/2

[Event "NJSK 2023 Jeugd B"]
[Site "Almelo, Netherlands"]
[Date "2023.05.05"]
[Round "6.1"]
[White "Kumar, Prajit Sai"]
[Black "Labruyere, Roger"]
[Result "1-0"]
[TimeControl "90min/40moves + 30min + 30sec/move"]
[WhiteElo "2228"]
[BlackElo "2160"]

1. d4 {[%emt 00:00:50]} Nf6 {[%clk 01:29:19]} {[%emt 00:00:52]} 2. c4 {[%clk
01:31:18]} {[%emt 00:00:05]} g6 {[%clk 01:29:41]} {[%emt 00:00:09]} 3. Nc3
{[%clk 01:31:43]} {[%emt 00:00:05]} Bg7 {[%clk 01:30:03]} {[%emt 00:00:08]} 4.
e4 {[%clk 01:32:07]} {[%emt 00:00:05]} O-O {[%clk 01:30:28]} {[%emt 00:00:06]}
5. Nf3 {[%clk 01:32:27]} {[%emt 00:00:09]} d6 {[%clk 01:30:47]} {[%emt
00:00:12]} 6. Be2 {[%clk 01:32:52]} {[%emt 00:00:05]} e5 {[%clk 01:30:04]}
{[%emt 00:01:13]} 7. Be3 {[%clk 01:32:32]} {[%emt 00:00:49]} Re8 {[%clk
01:25:10]} {[%emt 00:05:25]} 8. d5 {[%clk 01:27:58]} {[%emt 00:05:04]} Nh5
{[%clk 01:09:55]} {[%emt 00:15:45]} 9. g3 {[%clk 01:21:48]} {[%emt 00:06:39]}
Nf6 {[%clk 01:00:50]} {[%emt 00:09:36]} 10. Nd2 {[%clk 01:19:02]} {[%emt
00:03:15]} h5 {[%clk 00:59:27]} {[%emt 00:01:54]} 11. h3 {[%clk 01:14:55]}
{[%emt 00:04:36]} Qd7 {[%clk 00:50:12]} {[%emt 00:09:46]} 12. Qc2 {[%clk
01:04:12]} {[%emt 00:11:13]} Kh7 {[%clk 00:46:07]} {[%emt 00:04:35]} 13. g4
{[%clk 01:01:04]} {[%emt 00:03:37]} hxg4 {[%clk 00:39:07]} {[%emt 00:07:30]} 14.
hxg4+ {[%clk 01:00:04]} {[%emt 00:01:30]} Kg8 {[%clk 00:39:34]} {[%emt
00:00:03]} 15. f3 {[%clk 00:59:26]} {[%emt 00:01:08]} Nh7 {[%clk 00:34:55]}
{[%emt 00:05:10]} 16. O-O-O {[%clk 00:53:29]} {[%emt 00:06:26]} g5 {[%clk
00:32:23]} {[%emt 00:03:02]} 17. c5 {[%clk 00:47:32]} {[%emt 00:06:28]} Qe7
{[%clk 00:29:58]} {[%emt 00:02:55]} 18. b4 {[%clk 00:39:29]} {[%emt 00:08:33]}
Bd7 {[%clk 00:22:15]} {[%emt 00:08:13]} 19. Nb3 {[%clk 00:38:03]} {[%emt
00:01:56]} Rc8 {[%clk 00:19:52]} {[%emt 00:02:54]} 20. Kb1 {[%clk 00:35:04]}
{[%emt 00:03:27]} Be8 {[%clk 00:18:49]} {[%emt 00:01:33]} 21. a4 {[%clk
00:28:17]} {[%emt 00:07:18]} Nd7 {[%clk 00:16:22]} {[%emt 00:02:57]} 22. c6
{[%clk 00:27:58]} {[%emt 00:00:49]} bxc6 {[%clk 00:16:48]} {[%emt 00:00:04]} 23.
dxc6 {[%clk 00:28:25]} {[%emt 00:00:03]} Ndf6 {[%clk 00:17:07]} {[%emt
00:00:11]} 24. Na5 {[%clk 00:25:16]} {[%emt 00:03:39]} Rcb8 {[%clk 00:16:02]}
{[%emt 00:01:35]} 25. Qb2 {[%clk 00:23:54]} {[%emt 00:01:52]} a6 {[%clk
00:11:12]} {[%emt 00:05:21]} 26. Ka1 {[%clk 00:22:19]} {[%emt 00:02:04]} Bf8
{[%clk 00:09:43]} {[%emt 00:01:59]} 27. Rxh7 {[%clk 00:18:50]} {[%emt
00:03:59]} Kxh7 {[%clk 00:07:24]} {[%emt 00:02:48]} 28. Bxg5 {[%clk 00:18:07]}
{[%emt 00:01:13]} Bg7 {[%clk 00:07:04]} {[%emt 00:00:50]} 29. Nd5 {[%clk
00:16:51]} {[%emt 00:01:47]} Nxd5 {[%clk 00:07:27]} {[%emt 00:00:06]} 30. Bxe7
{[%clk 00:17:15]} {[%emt 00:00:06]} Nxe7 {[%clk 00:07:55]} {[%emt 00:00:03]} 31.
Bc4 {[%clk 00:16:28]} {[%emt 00:01:16]} Kg8 {[%clk 00:06:49]} {[%emt 00:01:37]}
32. Qc3 {[%clk 00:12:46]} {[%emt 00:04:12]} Rb6 {[%clk 00:05:43]} {[%emt
00:01:36]} 33. Ka2 {[%clk 00:11:57]} {[%emt 00:01:19]} Bxc6 {[%clk 00:04:47]}
{[%emt 00:01:26]} 34. Nxc6 {[%clk 00:10:07]} {[%emt 00:02:20]} Nxc6 {[%clk
00:04:52]} {[%emt 00:00:25]} 35. Rb1 {[%clk 00:10:32]} {[%emt 00:00:05]} Rab8
{[%clk 00:04:01]} {[%emt 00:01:22]} 36. b5 {[%clk 00:10:56]} {[%emt 00:00:05]}
axb5 {[%clk 00:02:03]} {[%emt 00:02:28]} 37. Bxb5 {[%clk 00:09:07]} {[%emt
00:02:18]} Nd4 {[%clk 00:01:23]} {[%emt 00:01:10]} 38. Bd3 {[%clk 00:05:22]}
{[%emt 00:04:15]} Rxb1 {[%clk 00:01:44]} {[%emt 00:00:09]} 39. Bxb1 {[%clk
00:05:48]} {[%emt 00:00:05]} c5 {[%clk 00:01:44]} {[%emt 00:00:31]} 40. a5
{[%clk 00:05:06]} {[%emt 00:01:11]} Nc6 {[%clk 00:01:03]} {[%emt 00:01:11]} 41.
Qd2 {[%clk 00:00:34]} {[%emt 00:05:02]} Bf8 {[%clk 00:25:25]} {[%emt 00:06:08]}
42. Ka1 {[%clk 00:24:57]} {[%emt 00:06:07]} Ra8 {[%clk 00:18:49]} {[%emt
00:07:06]} 43. Ba2 {[%clk 00:22:43]} {[%emt 00:02:44]} Nb4 {[%clk 00:07:58]}
{[%emt 00:11:21]} 44. Kb1 {[%clk 00:19:38]} {[%emt 00:03:34]} Be7 {[%clk
00:01:28]} {[%emt 00:07:02]} 45. Bc4 {[%clk 00:18:26]} {[%emt 00:01:41]} Rxa5
{[%clk 00:01:15]} {[%emt 00:00:43]} 46. Qh6 {[%clk 00:18:02]} {[%emt 00:00:54]}
d5 {[%clk 00:01:38]} {[%emt 00:00:07]} 47. exd5 {[%clk 00:18:07]} {[%emt
00:00:24]} Ra7 {[%clk 00:01:11]} {[%emt 00:00:58]} 48. d6 {[%clk 00:18:14]}
{[%emt 00:00:23]} Bf8 {[%clk 00:01:06]} {[%emt 00:00:34]} 49. Qg5+ {[%clk
00:17:14]} {[%emt 00:01:31]} Bg7 {[%clk 00:01:13]} {[%emt 00:00:23]} 50. Qd8+
{[%clk 00:17:20]} {[%emt 00:00:24]} Kh7 {[%clk 00:01:35]} {[%emt 00:00:08]} 51.
d7 {[%clk 00:16:52]} {[%emt 00:00:58]} Nc6 {[%clk 00:00:58]} {[%emt 00:01:07]}
52. Bd3+ {[%clk 00:17:00]} {[%emt 00:00:22]} 1-0